[Event "*** Titled Tuesday Blitz"]
[Site "Chess.com"]
[Date "2021.04.06"]
[Round "11"]
[White "Andreikka"]
[Black "Sibelephant"]
[Result "1-0"]
[WhiteElo "2886"]
[BlackElo "3099"]
[TimeControl "180+1"]
[EndTime "12:07:07 PDT"]
[Termination "Andreikka won by resignation"]

1. d4 {[%clk 0:03:00.9]} 1... Nf6 {[%clk 0:02:56.7]} 2. Nc3 {[%clk 0:03:01]}
2... d5 {[%clk 0:02:56.1]} 3. Bf4 {[%clk 0:03:01.5]} 3... c5 {[%clk 0:02:55.6]}
4. e3 {[%clk 0:03:00.7]} 4... cxd4 {[%clk 0:02:55.8]} 5. exd4 {[%clk 0:03:01.6]}
5... a6 {[%clk 0:02:55.8]} 6. Nf3 {[%clk 0:03:00.6]} 6... Bg4 {[%clk 0:02:56]}
7. Be2 {[%clk 0:02:53.7]} 7... Nc6 {[%clk 0:02:56.2]} 8. Ne5 {[%clk 0:02:53.6]}
8... Bxe2 {[%clk 0:02:54.9]} 9. Nxe2 {[%clk 0:02:54]} 9... e6 {[%clk 0:02:55.2]}
10. c3 {[%clk 0:02:53.2]} 10... Bd6 {[%clk 0:02:55.5]} 11. Qd3 {[%clk
0:02:52.6]} 11... Qc7 {[%clk 0:02:47.5]} 12. Nxc6 {[%clk 0:02:51.1]} 12... bxc6
{[%clk 0:02:37.1]} 13. Bxd6 {[%clk 0:02:41.8]} 13... Qxd6 {[%clk 0:02:37]} 14.
Qg3 {[%clk 0:02:42.7]} 14... Ke7 {[%clk 0:02:25.6]} 15. Nf4 {[%clk 0:02:35.1]}
15... Ne4 {[%clk 0:01:54.7]} 16. Qe3 {[%clk 0:02:33.3]} 16... c5 {[%clk
0:01:54.3]} 17. Nd3 {[%clk 0:02:33.4]} 17... c4 {[%clk 0:01:49]} 18. Ne5 {[%clk
0:02:28.8]} 18... f6 {[%clk 0:01:47.1]} 19. Nxc4 {[%clk 0:02:28.3]} 19... Qc6
{[%clk 0:00:55]} 20. Nd2 {[%clk 0:02:24.2]} 20... Nxd2 {[%clk 0:00:51]} 21. Qxd2
{[%clk 0:02:24.1]} 21... Qb5 {[%clk 0:00:51.4]} 22. O-O-O {[%clk 0:02:08.9]}
22... Rab8 {[%clk 0:00:46.5]} 23. Rhe1 {[%clk 0:02:08.3]} 23... Rhc8 {[%clk
0:00:44.4]} 24. Re3 {[%clk 0:01:59.8]} 24... Rc6 {[%clk 0:00:43.2]} 25. Rde1
{[%clk 0:01:56.9]} 25... Qa4 {[%clk 0:00:38.2]} 26. Qe2 {[%clk 0:01:48.8]} 26...
Rbb6 {[%clk 0:00:37.8]} 27. Kb1 {[%clk 0:01:47.3]} 27... Qa5 {[%clk 0:00:24.8]}
28. Qg4 {[%clk 0:01:40.9]} 28... g6 {[%clk 0:00:23.1]} 29. Qh3 {[%clk
0:01:24.1]} 29... h5 {[%clk 0:00:20.8]} 30. g4 {[%clk 0:01:24.4]} 30... Qa3
{[%clk 0:00:10]} 31. R1e2 {[%clk 0:01:15.7]} 31... Qa4 {[%clk 0:00:09.1]} 32.
Rd2 {[%clk 0:01:16]} 32... h4 {[%clk 0:00:03]} 33. Qxh4 {[%clk 0:01:11.9]} 33...
Qb5 {[%clk 0:00:03.2]} 34. Qh7+ {[%clk 0:01:04.6]} 34... Kd6 {[%clk 0:00:03.2]}
35. Rde2 {[%clk 0:01:04.6]} 35... e5 {[%clk 0:00:01.4]} 36. Qxg6 {[%clk
0:01:02.5]} 36... Qc4 {[%clk 0:00:01.1]} 37. Qxf6+ {[%clk 0:01:01.7]} 37... Kc7
{[%clk 0:00:01.5]} 38. Qxe5+ {[%clk 0:00:53.1]} 38... Kb7 {[%clk 0:00:01.8]} 39.
Qf5 {[%clk 0:00:49.8]} 39... a5 {[%clk 0:00:01.5]} 40. Qd3 {[%clk 0:00:49.2]}
40... Qa4 {[%clk 0:00:01.7]} 41. Re7+ {[%clk 0:00:48.9]} 41... Kb8 {[%clk
0:00:02.1]} 42. Re8+ {[%clk 0:00:47.3]} 1-0

[Event "*** Titled Tuesday Blitz"]
[Site "Chess.com"]
[Date "2021.04.06"]
[Round "11"]
[White "ffbp3q"]
[Black "Yurovskykh_Oleksandr"]
[Result "1-0"]
[WhiteElo "2392"]
[BlackElo "2505"]
[TimeControl "180+1"]
[EndTime "12:07:07 PDT"]
[Termination "ffbp3q won on time"]

1. d4 {[%clk 0:03:00.9]} 1... d5 {[%clk 0:02:59.6]} 2. c4 {[%clk 0:03:00.5]}
2... dxc4 {[%clk 0:02:59.9]} 3. Nf3 {[%clk 0:02:59.9]} 3... Nf6 {[%clk
0:02:59.3]} 4. e3 {[%clk 0:03:00.1]} 4... e6 {[%clk 0:02:58.6]} 5. Bxc4 {[%clk
0:03:00.1]} 5... a6 {[%clk 0:02:59.1]} 6. O-O {[%clk 0:02:56.3]} 6... b5 {[%clk
0:02:59.5]} 7. Bd3 {[%clk 0:02:55.5]} 7... Bb7 {[%clk 0:02:58.9]} 8. Qe2 {[%clk
0:02:55.1]} 8... c5 {[%clk 0:02:57.7]} 9. dxc5 {[%clk 0:02:54.7]} 9... Bxc5
{[%clk 0:02:56.6]} 10. Bxb5+ {[%clk 0:02:54.5]} 10... Nbd7 {[%clk 0:02:35.3]}
11. Ba4 {[%clk 0:02:37.3]} 11... O-O {[%clk 0:02:32.5]} 12. Nc3 {[%clk
0:02:34.4]} 12... Qe7 {[%clk 0:02:19.5]} 13. Bc2 {[%clk 0:02:23.4]} 13... a5
{[%clk 0:02:12.6]} 14. Bd2 {[%clk 0:02:19.1]} 14... Rfd8 {[%clk 0:02:03.1]} 15.
Rfd1 {[%clk 0:02:14.5]} 15... Ba6 {[%clk 0:01:57.7]} 16. Nb5 {[%clk 0:02:05.3]}
16... Rab8 {[%clk 0:01:52.5]} 17. a4 {[%clk 0:02:04.3]} 17... Bb4 {[%clk
0:01:31.5]} 18. Nfd4 {[%clk 0:01:54.7]} 18... Rdc8 {[%clk 0:01:19.8]} 19. Rac1
{[%clk 0:01:44.1]} 19... Bxd2 {[%clk 0:01:02.8]} 20. Qxd2 {[%clk 0:01:40.6]}
20... Nc5 {[%clk 0:01:02.3]} 21. Qxa5 {[%clk 0:01:32.4]} 21... Nd5 {[%clk
0:00:39.4]} 22. Nc6 {[%clk 0:01:30.6]} 22... Rxc6 {[%clk 0:00:33.8]} 23. Nd4
{[%clk 0:01:19]} 23... Rcc8 {[%clk 0:00:28.4]} 24. Bb1 {[%clk 0:01:04.8]} 24...
Bb7 {[%clk 0:00:17.9]} 25. b4 {[%clk 0:00:58.9]} 25... Nd7 {[%clk 0:00:13.9]}
26. b5 {[%clk 0:00:51.4]} 26... N7b6 {[%clk 0:00:09]} 27. Nc6 {[%clk 0:00:45.8]}
27... Bxc6 {[%clk 0:00:08.3]} 28. bxc6 {[%clk 0:00:45.1]} 28... Qc7 {[%clk
0:00:05.5]} 29. e4 {[%clk 0:00:38.5]} 29... Ra8 {[%clk 0:00:05.4]} 30. Qd2
{[%clk 0:00:34.2]} 30... Ne7 {[%clk 0:00:05.6]} 31. a5 {[%clk 0:00:27.4]} 31...
Nc4 {[%clk 0:00:02.9]} 32. Rxc4 {[%clk 0:00:26.4]} 32... Nxc6 {[%clk 0:00:02.8]}
33. Rdc1 {[%clk 0:00:25.7]} 1-0

[Event "*** Titled Tuesday Blitz"]
[Site "Chess.com"]
[Date "2021.04.06"]
[Round "11"]
[White "tteshan"]
[Black "prachiti01"]
[Result "0-1"]
[WhiteElo "2294"]
[BlackElo "2192"]
[TimeControl "180+1"]
[EndTime "12:07:10 PDT"]
[Termination "prachiti01 won by checkmate"]

1. e4 {[%clk 0:02:55]} 1... e6 {[%clk 0:02:58.8]} 2. d3 {[%clk 0:02:54.4]} 2...
d5 {[%clk 0:02:55.5]} 3. Qe2 {[%clk 0:02:54.6]} 3... c5 {[%clk 0:02:47.1]} 4.
Nf3 {[%clk 0:02:53.3]} 4... Nc6 {[%clk 0:02:43.7]} 5. g3 {[%clk 0:02:53.3]} 5...
Nf6 {[%clk 0:02:34.6]} 6. Bg2 {[%clk 0:02:53.1]} 6... Be7 {[%clk 0:02:25.1]} 7.
O-O {[%clk 0:02:52.3]} 7... O-O {[%clk 0:02:22.5]} 8. e5 {[%clk 0:02:52.6]} 8...
Nd7 {[%clk 0:02:20.9]} 9. c4 {[%clk 0:02:53.5]} 9... dxc4 {[%clk 0:02:18.4]} 10.
dxc4 {[%clk 0:02:52.6]} 10... Nd4 {[%clk 0:02:18.5]} 11. Qe4 {[%clk 0:02:15]}
11... Nxf3+ {[%clk 0:02:13.6]} 12. Bxf3 {[%clk 0:02:13.7]} 12... Qc7 {[%clk
0:02:11.2]} 13. Re1 {[%clk 0:02:08.5]} 13... Rd8 {[%clk 0:02:08.9]} 14. Nc3
{[%clk 0:02:06.2]} 14... a6 {[%clk 0:02:06.3]} 15. h4 {[%clk 0:01:57.4]} 15...
Rb8 {[%clk 0:02:04.1]} 16. Bd1 {[%clk 0:01:35.1]} 16... b6 {[%clk 0:02:01.4]}
17. Bc2 {[%clk 0:01:34.4]} 17... Nf8 {[%clk 0:01:59.9]} 18. h5 {[%clk
0:01:27.1]} 18... Bb7 {[%clk 0:01:59.1]} 19. Qg4 {[%clk 0:01:27]} 19... Rd4
{[%clk 0:01:53.1]} 20. Qe2 {[%clk 0:00:40.9]} 20... Rbd8 {[%clk 0:01:49.4]} 21.
f4 {[%clk 0:00:37.7]} 21... Ba8 {[%clk 0:01:29.2]} 22. Be4 {[%clk 0:00:36.2]}
22... Bxe4 {[%clk 0:01:24.8]} 23. Nxe4 {[%clk 0:00:36.7]} 23... Qc6 {[%clk
0:01:20.6]} 24. h6 {[%clk 0:00:32.6]} 24... g6 {[%clk 0:01:15.9]} 25. b3 {[%clk
0:00:28]} 25... Rd3 {[%clk 0:01:10.5]} 26. Bb2 {[%clk 0:00:24.5]} 26... Qd7
{[%clk 0:01:06.6]} 27. Nd6 {[%clk 0:00:20]} 27... Rxg3+ {[%clk 0:01:05.1]} 28.
Kh2 {[%clk 0:00:20.3]} 28... Bh4 {[%clk 0:00:53.2]} 29. Red1 {[%clk 0:00:16.9]}
29... Qe7 {[%clk 0:00:45]} 30. Qe4 {[%clk 0:00:12.1]} 30... Rg4 {[%clk
0:00:36.3]} 31. Rg1 {[%clk 0:00:10.8]} 31... Rxg1 {[%clk 0:00:26]} 32. Rxg1
{[%clk 0:00:11.1]} 32... Bf2 {[%clk 0:00:24.5]} 33. Rg2 {[%clk 0:00:11.1]} 33...
Qh4# {[%clk 0:00:22.4]} 0-1

[Event "*** Titled Tuesday Blitz"]
[Site "Chess.com"]
[Date "2021.04.06"]
[Round "11"]
[White "PchelkinVK"]
[Black "Rondo_Capriccioso"]
[Result "1-0"]
[WhiteElo "2585"]
[BlackElo "2478"]
[TimeControl "180+1"]
[EndTime "12:07:12 PDT"]
[Termination "PchelkinVK won by resignation"]

1. d4 {[%clk 0:03:00.9]} 1... Nf6 {[%clk 0:02:59.1]} 2. Nc3 {[%clk 0:03:00.8]}
2... d5 {[%clk 0:02:56.1]} 3. Bf4 {[%clk 0:03:01.1]} 3... c5 {[%clk 0:02:45.1]}
4. e4 {[%clk 0:02:59.2]} 4... cxd4 {[%clk 0:02:43.7]} 5. Qxd4 {[%clk 0:02:58.6]}
5... Nc6 {[%clk 0:02:40.5]} 6. Bb5 {[%clk 0:02:59]} 6... Nxe4 {[%clk 0:02:24.7]}
7. Nxe4 {[%clk 0:02:49.9]} 7... dxe4 {[%clk 0:02:23]} 8. Qxd8+ {[%clk
0:02:49.3]} 8... Kxd8 {[%clk 0:02:23.4]} 9. O-O-O+ {[%clk 0:02:50.1]} 9... Ke8
{[%clk 0:02:23.4]} 10. Ne2 {[%clk 0:02:38.8]} 10... Bd7 {[%clk 0:02:22.7]} 11.
Nc3 {[%clk 0:02:34.9]} 11... a6 {[%clk 0:02:09.5]} 12. Nd5 {[%clk 0:02:26.3]}
12... Kd8 {[%clk 0:02:02.9]} 13. Bxc6 {[%clk 0:02:12.8]} 13... bxc6 {[%clk
0:01:54.5]} 14. Bc7+ {[%clk 0:02:04]} 14... Ke8 {[%clk 0:01:51.1]} 15. Nb6
{[%clk 0:02:02]} 15... Ra7 {[%clk 0:01:37.5]} 16. Rxd7 {[%clk 0:02:00.5]} 16...
f6 {[%clk 0:01:35]} 17. Rhd1 {[%clk 0:01:57.1]} 17... g6 {[%clk 0:01:33]} 18. a4
{[%clk 0:01:41.6]} 18... Bh6+ {[%clk 0:01:29.2]} 19. Kb1 {[%clk 0:01:41.4]}
19... Kf7 {[%clk 0:01:29.6]} 20. a5 {[%clk 0:01:33.7]} 20... Rb7 {[%clk
0:01:29]} 21. Bg3 {[%clk 0:01:31.7]} 21... Rxd7 {[%clk 0:01:26.2]} 22. Rxd7
{[%clk 0:01:31.4]} 22... Ke6 {[%clk 0:01:22.5]} 23. Rc7 {[%clk 0:01:26.5]} 23...
f5 {[%clk 0:01:23.4]} 24. Rxc6+ {[%clk 0:01:23.7]} 24... Kf7 {[%clk 0:01:22.4]}
25. Be5 {[%clk 0:01:18.4]} 25... Rd8 {[%clk 0:01:22.8]} 26. c3 {[%clk
0:01:07.4]} 26... Rd2 {[%clk 0:01:22.8]} 27. Bd4 {[%clk 0:01:07.2]} 27... e5
{[%clk 0:01:17.8]} 28. Rc7+ {[%clk 0:01:03.3]} 28... Ke6 {[%clk 0:01:12.4]} 29.
Bc5 {[%clk 0:00:59.9]} 29... f4 {[%clk 0:01:00.6]} 30. Rxh7 {[%clk 0:00:59.2]}
30... e3 {[%clk 0:01:01]} 31. fxe3 {[%clk 0:00:49.4]} 31... fxe3 {[%clk
0:01:01.9]} 32. Rxh6 {[%clk 0:00:44.6]} 32... e2 {[%clk 0:01:00.1]} 33. Bf2
{[%clk 0:00:44.6]} 33... Kf5 {[%clk 0:00:50.3]} 34. Rh3 {[%clk 0:00:36.4]} 34...
Rd1+ {[%clk 0:00:38.9]} 35. Ka2 {[%clk 0:00:36]} 35... Rf1 {[%clk 0:00:39.3]}
36. Rf3+ {[%clk 0:00:29.6]} 36... Kg4 {[%clk 0:00:22.6]} 37. Bg3 {[%clk
0:00:27.1]} 37... e4 {[%clk 0:00:18]} 38. Re3 {[%clk 0:00:23]} 1-0

[Event "*** Titled Tuesday Blitz"]
[Site "Chess.com"]
[Date "2021.04.06"]
[Round "11"]
[White "zala02"]
[Black "kuba2006"]
[Result "0-1"]
[WhiteElo "2168"]
[BlackElo "2342"]
[TimeControl "180+1"]
[EndTime "12:07:12 PDT"]
[Termination "kuba2006 won on time"]

1. e4 {[%clk 0:03:00.9]} 1... Nf6 {[%clk 0:03:00.9]} 2. d3 {[%clk 0:02:54.4]}
2... e6 {[%clk 0:02:36.4]} 3. f4 {[%clk 0:02:51.6]} 3... d5 {[%clk 0:02:33.9]}
4. e5 {[%clk 0:02:48.2]} 4... Nfd7 {[%clk 0:02:28.8]} 5. Nf3 {[%clk 0:02:47.8]}
5... c5 {[%clk 0:02:25.9]} 6. g4 {[%clk 0:02:47.3]} 6... Be7 {[%clk 0:02:05.2]}
7. Bg2 {[%clk 0:02:46]} 7... h5 {[%clk 0:01:58.8]} 8. g5 {[%clk 0:02:32.6]} 8...
g6 {[%clk 0:01:56.5]} 9. O-O {[%clk 0:02:09.3]} 9... O-O {[%clk 0:01:53.7]} 10.
Kh1 {[%clk 0:02:06]} 10... Nc6 {[%clk 0:01:51]} 11. Nc3 {[%clk 0:01:56.9]} 11...
a6 {[%clk 0:01:45.4]} 12. Ne2 {[%clk 0:01:56]} 12... Kg7 {[%clk 0:01:41.5]} 13.
Ng3 {[%clk 0:01:54.8]} 13... Rh8 {[%clk 0:01:38.2]} 14. Nh4 {[%clk 0:01:54.1]}
14... b5 {[%clk 0:01:27.1]} 15. c4 {[%clk 0:01:51.6]} 15... Nb6 {[%clk
0:01:15.4]} 16. b3 {[%clk 0:01:40.1]} 16... Bb7 {[%clk 0:01:10]} 17. cxd5 {[%clk
0:01:29.6]} 17... Nxd5 {[%clk 0:01:04.2]} 18. Qe1 {[%clk 0:01:28.2]} 18... Nd4
{[%clk 0:01:02]} 19. Qf2 {[%clk 0:01:21.6]} 19... Nf5 {[%clk 0:00:54.1]} 20.
Ngxf5+ {[%clk 0:00:58.2]} 20... exf5 {[%clk 0:00:55]} 21. Bb2 {[%clk 0:00:56.3]}
21... Re8 {[%clk 0:00:32.4]} 22. Rae1 {[%clk 0:00:50.9]} 22... Kh7 {[%clk
0:00:26]} 23. e6 {[%clk 0:00:50]} 23... f6 {[%clk 0:00:24.3]} 24. Nf3 {[%clk
0:00:16.8]} 24... Nxf4 {[%clk 0:00:12.5]} 25. Bc1 {[%clk 0:00:04.9]} 25... Nxd3
{[%clk 0:00:06.7]} 0-1

[Event "*** Titled Tuesday Blitz"]
[Site "Chess.com"]
[Date "2021.04.06"]
[Round "11"]
[White "anpospan"]
[Black "maximych26"]
[Result "1-0"]
[WhiteElo "2403"]
[BlackElo "2272"]
[TimeControl "180+1"]
[EndTime "12:07:15 PDT"]
[Termination "anpospan won by resignation"]

1. d4 {[%clk 0:03:00.9]} 1... Nf6 {[%clk 0:02:56]} 2. c4 {[%clk 0:03:01.1]} 2...
c5 {[%clk 0:02:49.8]} 3. Nf3 {[%clk 0:02:59.9]} 3... e6 {[%clk 0:02:47.3]} 4.
Nc3 {[%clk 0:02:58.6]} 4... cxd4 {[%clk 0:02:46.9]} 5. Nxd4 {[%clk 0:02:57.8]}
5... Nc6 {[%clk 0:02:47.8]} 6. Nb3 {[%clk 0:02:57.2]} 6... Bb4 {[%clk
0:02:46.2]} 7. g3 {[%clk 0:02:56.2]} 7... d5 {[%clk 0:02:45.2]} 8. cxd5 {[%clk
0:02:55.1]} 8... Qxd5 {[%clk 0:02:44.7]} 9. Qxd5 {[%clk 0:02:53.2]} 9... Nxd5
{[%clk 0:02:44.6]} 10. Bd2 {[%clk 0:02:52.7]} 10... Bxc3 {[%clk 0:02:44.5]} 11.
bxc3 {[%clk 0:02:51.8]} 11... O-O {[%clk 0:02:44.3]} 12. Bg2 {[%clk 0:02:50]}
12... Ne5 {[%clk 0:02:40.3]} 13. Na5 {[%clk 0:02:21.6]} 13... b6 {[%clk
0:02:30.7]} 14. c4 {[%clk 0:02:18.8]} 14... bxa5 {[%clk 0:02:30.6]} 15. cxd5
{[%clk 0:02:18.4]} 15... Bb7 {[%clk 0:02:30.5]} 16. Bxa5 {[%clk 0:02:07.7]}
16... Bxd5 {[%clk 0:02:29.3]} 17. Bxd5 {[%clk 0:02:06.9]} 17... exd5 {[%clk
0:02:29.4]} 18. O-O {[%clk 0:02:06.4]} 18... Nc4 {[%clk 0:02:29]} 19. Bc3 {[%clk
0:02:03.8]} 19... Rab8 {[%clk 0:02:21.7]} 20. Rfd1 {[%clk 0:01:59.9]} 20... Rfd8
{[%clk 0:02:20.3]} 21. Bd4 {[%clk 0:01:57.4]} 21... a6 {[%clk 0:02:18]} 22. Rab1
{[%clk 0:01:55.1]} 22... f6 {[%clk 0:02:15.8]} 23. Rxb8 {[%clk 0:01:51.6]} 23...
Rxb8 {[%clk 0:02:15.2]} 24. Bc5 {[%clk 0:01:47.2]} 24... Rd8 {[%clk 0:02:13.5]}
25. e4 {[%clk 0:01:46.2]} 25... Kf7 {[%clk 0:02:01.4]} 26. Rxd5 {[%clk
0:01:37.8]} 26... Rxd5 {[%clk 0:01:42.3]} 27. exd5 {[%clk 0:01:37.6]} 27... f5
{[%clk 0:01:41.1]} 28. f3 {[%clk 0:01:33.7]} 28... g6 {[%clk 0:01:37]} 29. Kf2
{[%clk 0:01:33.3]} 29... Kf6 {[%clk 0:01:37.2]} 30. f4 {[%clk 0:01:22]} 30...
Nd2 {[%clk 0:01:36.3]} 31. Ke3 {[%clk 0:01:17.7]} 31... Ne4 {[%clk 0:01:35.5]}
32. Kd4 {[%clk 0:01:15.1]} 32... h6 {[%clk 0:01:31.2]} 33. Bb6 {[%clk
0:01:08.9]} 33... Ke7 {[%clk 0:01:20.9]} 34. Bc5+ {[%clk 0:01:08]} 34... Kd7
{[%clk 0:01:20.7]} 35. Bf8 {[%clk 0:01:05]} 35... h5 {[%clk 0:01:19.3]} 36. Ke5
{[%clk 0:01:04.4]} 36... Ke8 {[%clk 0:01:16.5]} 37. Bb4 {[%clk 0:01:02.7]} 37...
Kd7 {[%clk 0:01:16.6]} 38. a4 {[%clk 0:01:01.6]} 38... a5 {[%clk 0:00:50.4]} 39.
Bxa5 {[%clk 0:00:59.5]} 39... Nc5 {[%clk 0:00:50.7]} 40. Kf6 {[%clk 0:00:54.4]}
40... Nxa4 {[%clk 0:00:48.8]} 41. Kxg6 {[%clk 0:00:51.9]} 41... Kd6 {[%clk
0:00:49]} 42. Kxf5 {[%clk 0:00:50.1]} 42... Kxd5 {[%clk 0:00:48.4]} 43. Kg5
{[%clk 0:00:50.3]} 43... Ke4 {[%clk 0:00:48]} 44. Kxh5 {[%clk 0:00:49.5]} 44...
Nc5 {[%clk 0:00:48.1]} 45. Bd2 {[%clk 0:00:42.8]} 45... Kd3 {[%clk 0:00:46.4]}
46. Kg6 {[%clk 0:00:41.8]} 46... Kxd2 {[%clk 0:00:46.1]} 47. h4 {[%clk
0:00:39.4]} 47... Ke3 {[%clk 0:00:41.6]} 48. h5 {[%clk 0:00:39.3]} 48... Nd7
{[%clk 0:00:39.5]} 49. h6 {[%clk 0:00:38.2]} 49... Nf8+ {[%clk 0:00:36.1]} 50.
Kg7 {[%clk 0:00:35.5]} 50... Ne6+ {[%clk 0:00:36.2]} 51. Kf7 {[%clk 0:00:34.7]}
51... Nd8+ {[%clk 0:00:36.3]} 52. Kf6 {[%clk 0:00:34.6]} 52... Kf3 {[%clk
0:00:34.2]} 53. h7 {[%clk 0:00:34.3]} 1-0

[Event "*** Titled Tuesday Blitz"]
[Site "Chess.com"]
[Date "2021.04.06"]
[Round "11"]
[White "muchojogo"]
[Black "MPGM"]
[Result "0-1"]
[WhiteElo "2460"]
[BlackElo "2567"]
[TimeControl "180+1"]
[EndTime "12:07:16 PDT"]
[Termination "MPGM won by resignation"]

1. d4 {[%clk 0:03:00.9]} 1... d5 {[%clk 0:02:59.6]} 2. Bf4 {[%clk 0:03:01.3]}
2... e6 {[%clk 0:02:57.9]} 3. e3 {[%clk 0:03:01.6]} 3... Bd6 {[%clk 0:02:56.8]}
4. Bg3 {[%clk 0:03:01.8]} 4... Ne7 {[%clk 0:02:56.1]} 5. Nd2 {[%clk 0:03:00.7]}
5... b6 {[%clk 0:02:55.8]} 6. c4 {[%clk 0:02:57.9]} 6... O-O {[%clk 0:02:54.5]}
7. Ngf3 {[%clk 0:02:57.7]} 7... Nd7 {[%clk 0:02:39.3]} 8. cxd5 {[%clk
0:02:52.2]} 8... Nxd5 {[%clk 0:02:33.7]} 9. a3 {[%clk 0:02:44.8]} 9... Bb7
{[%clk 0:02:33.2]} 10. Bd3 {[%clk 0:02:44.4]} 10... N7f6 {[%clk 0:02:31.6]} 11.
Nc4 {[%clk 0:02:38.9]} 11... Ne7 {[%clk 0:02:05.4]} 12. Nxd6 {[%clk 0:02:37.5]}
12... cxd6 {[%clk 0:02:05]} 13. O-O {[%clk 0:02:38.3]} 13... Be4 {[%clk
0:02:04]} 14. Qb1 {[%clk 0:02:28]} 14... Bxd3 {[%clk 0:02:02.8]} 15. Qxd3 {[%clk
0:02:28.9]} 15... Qd7 {[%clk 0:02:02.2]} 16. Rac1 {[%clk 0:02:19.8]} 16... Rfc8
{[%clk 0:01:59.6]} 17. Bh4 {[%clk 0:01:42.1]} 17... Nfd5 {[%clk 0:01:50.5]} 18.
h3 {[%clk 0:01:25.3]} 18... Nf5 {[%clk 0:01:48.8]} 19. Bg5 {[%clk 0:01:03]}
19... Nfe7 {[%clk 0:01:00.3]} 20. e4 {[%clk 0:01:02.6]} 20... Nc7 {[%clk
0:00:54.8]} 21. Bxe7 {[%clk 0:01:02.5]} 21... Qxe7 {[%clk 0:00:53.9]} 22. d5
{[%clk 0:01:03.4]} 22... exd5 {[%clk 0:00:48.9]} 23. exd5 {[%clk 0:01:04.3]}
23... Ne8 {[%clk 0:00:47.2]} 24. Rc6 {[%clk 0:00:49.8]} 24... Qd7 {[%clk
0:00:33.5]} 25. Rfc1 {[%clk 0:00:49.2]} 25... h6 {[%clk 0:00:26.4]} 26. b4
{[%clk 0:00:49.3]} 26... a5 {[%clk 0:00:19.5]} 27. b5 {[%clk 0:00:49.1]} 27...
Rab8 {[%clk 0:00:18.4]} 28. a4 {[%clk 0:00:48.4]} 28... Rd8 {[%clk 0:00:17.6]}
29. Nd4 {[%clk 0:00:46]} 29... Nf6 {[%clk 0:00:16.3]} 30. Rc7 {[%clk 0:00:45.8]}
30... Qe8 {[%clk 0:00:15.3]} 31. Re1 {[%clk 0:00:45.6]} 31... Qxe1+ {[%clk
0:00:11]} 32. Kh2 {[%clk 0:00:44.6]} 32... Qe5+ {[%clk 0:00:10.8]} 33. g3 {[%clk
0:00:43.2]} 33... Qxd5 {[%clk 0:00:11.1]} 34. Qc3 {[%clk 0:00:40.4]} 34... Ne4
{[%clk 0:00:08.3]} 35. Qe3 {[%clk 0:00:40.2]} 35... Nc5 {[%clk 0:00:08]} 36. Nc6
{[%clk 0:00:40]} 36... Re8 {[%clk 0:00:07]} 37. Ne7+ {[%clk 0:00:39.2]} 37...
Rxe7 {[%clk 0:00:06.7]} 38. Qxe7 {[%clk 0:00:40.1]} 38... Rf8 {[%clk 0:00:06.3]}
39. Rc6 {[%clk 0:00:39]} 39... Ne4 {[%clk 0:00:06.3]} 40. Kg1 {[%clk 0:00:37.3]}
40... Qd4 {[%clk 0:00:06.1]} 41. Rc2 {[%clk 0:00:35.7]} 41... Qd1+ {[%clk
0:00:06.3]} 42. Kg2 {[%clk 0:00:34.4]} 42... Qxc2 {[%clk 0:00:07.2]} 0-1

[Event "*** Titled Tuesday Blitz"]
[Site "Chess.com"]
[Date "2021.04.06"]
[Round "11"]
[White "viktorgen2021"]
[Black "atwalcb"]
[Result "0-1"]
[WhiteElo "2298"]
[BlackElo "2474"]
[TimeControl "180+1"]
[EndTime "12:07:17 PDT"]
[Termination "atwalcb won by checkmate"]

1. d4 {[%clk 0:03:00.9]} 1... Nf6 {[%clk 0:02:59.8]} 2. Nf3 {[%clk 0:03:00.1]}
2... e6 {[%clk 0:02:59.4]} 3. g3 {[%clk 0:02:59.7]} 3... b6 {[%clk 0:02:59.1]}
4. Bg2 {[%clk 0:02:59.8]} 4... Bb7 {[%clk 0:03:00]} 5. O-O {[%clk 0:03:00.3]}
5... g6 {[%clk 0:03:00.5]} 6. c4 {[%clk 0:03:00.3]} 6... Bg7 {[%clk 0:03:00.9]}
7. Nc3 {[%clk 0:02:59.6]} 7... d6 {[%clk 0:02:58.7]} 8. Qc2 {[%clk 0:02:59]}
8... Nbd7 {[%clk 0:02:58.8]} 9. e4 {[%clk 0:02:58.5]} 9... Qe7 {[%clk
0:02:59.4]} 10. h3 {[%clk 0:02:45.2]} 10... O-O {[%clk 0:02:56.6]} 11. b3 {[%clk
0:02:32]} 11... h6 {[%clk 0:02:32.5]} 12. Bb2 {[%clk 0:02:31.4]} 12... e5 {[%clk
0:02:32.1]} 13. d5 {[%clk 0:02:31.2]} 13... Nh5 {[%clk 0:02:31.8]} 14. Nh4
{[%clk 0:02:18.7]} 14... Nf4 {[%clk 0:02:14.1]} 15. gxf4 {[%clk 0:02:12.8]}
15... Qxh4 {[%clk 0:02:13.4]} 16. f5 {[%clk 0:02:13.2]} 16... Nf6 {[%clk
0:02:01]} 17. Ne2 {[%clk 0:01:57.4]} 17... Nh5 {[%clk 0:01:52.2]} 18. Kh2 {[%clk
0:01:51.3]} 18... Bc8 {[%clk 0:01:45.6]} 19. Ng3 {[%clk 0:01:48.6]} 19... Nf4
{[%clk 0:01:42.9]} 20. Rg1 {[%clk 0:01:42.6]} 20... Kh8 {[%clk 0:01:28.3]} 21.
f3 {[%clk 0:01:39.7]} 21... Bf6 {[%clk 0:01:24.8]} 22. Bf1 {[%clk 0:01:38.9]}
22... Bg5 {[%clk 0:01:24.6]} 23. Bc3 {[%clk 0:01:32.2]} 23... Nh5 {[%clk
0:01:14.4]} 24. Nxh5 {[%clk 0:00:58.1]} 24... Qxh5 {[%clk 0:01:00.2]} 25. Bd3
{[%clk 0:00:42.2]} 25... Bf4+ {[%clk 0:00:58.9]} 26. Kg2 {[%clk 0:00:39.7]}
26... gxf5 {[%clk 0:00:59.3]} 27. exf5 {[%clk 0:00:32.3]} 27... Rg8+ {[%clk
0:00:54.5]} 28. Kf2 {[%clk 0:00:31.9]} 28... Bd7 {[%clk 0:00:40.5]} 29. Rg4
{[%clk 0:00:22.6]} 29... Qxh3 {[%clk 0:00:37]} 30. Rag1 {[%clk 0:00:22.7]} 30...
Rxg4 {[%clk 0:00:29.9]} 31. fxg4 {[%clk 0:00:21.8]} 31... Be3+ {[%clk
0:00:27.2]} 32. Ke2 {[%clk 0:00:20]} 32... Bxg1 {[%clk 0:00:27.4]} 33. Kd1
{[%clk 0:00:17.6]} 33... Qxg4+ {[%clk 0:00:25.9]} 34. Kc1 {[%clk 0:00:18]} 34...
Bd4 {[%clk 0:00:22.7]} 35. Kb2 {[%clk 0:00:17]} 35... Bxc3+ {[%clk 0:00:22.4]}
36. Kxc3 {[%clk 0:00:17.2]} 36... Qd4+ {[%clk 0:00:22.9]} 37. Kb4 {[%clk
0:00:17.5]} 37... a5+ {[%clk 0:00:20.2]} 38. Ka3 {[%clk 0:00:16.7]} 38... Rg8
{[%clk 0:00:19.1]} 39. Qh2 {[%clk 0:00:15.6]} 39... Qf4 {[%clk 0:00:19]} 40. Qh5
{[%clk 0:00:14.3]} 40... Qc1# {[%clk 0:00:18.8]} 0-1